[Event "Turning Torso Chess Event 2021"]
[Site "Malmoe"]
[Date "2021.08.21"]
[Round "7.1"]
[White "Pantzar, Milton"]
[Black "Schussler, Harry"]
[Result "1/2-1/2"]
[ECO "E48"]
[WhiteElo "2424"]
[BlackElo "2410"]
[Annotator "ChessBase"]
[PlyCount "36"]
[EventDate "2021.08.20"]
[EventType "tourn"]
[EventCountry "SWE"]
[SourceTitle "playchess.com"]
[Source "ChessBase"]
[SourceQuality "1"]
[TimeControl "900+5"]

1. d4 {[%emt 0:00:02]} Nf6 {[%emt 0:00:03]} 2. c4 {[%emt 0:00:03]} e6 {[%emt 0:
00:02]} 3. Nc3 {[%emt 0:00:07]} Bb4 {[%emt 0:00:09]} 4. e3 {[%emt 0:00:06]} c5
{[%emt 0:00:17]} 5. Bd3 {[%emt 0:00:24]} Nc6 {[%emt 0:00:11]} 6. Nge2 {[%emt 0:
00:15]} cxd4 {[%emt 0:00:07]} 7. exd4 {[%emt 0:00:04]} d5 {[%emt 0:00:03]} 8.
cxd5 {[%emt 0:00:16]} Nxd5 {[%emt 0:00:05]} 9. O-O {[%emt 0:00:07]} O-O {
[%emt 0:00:10]} 10. Nxd5 {[%emt 0:01:00]} exd5 {[%emt 0:00:33]} 11. Bf4 {
[%emt 0:00:46]} Be7 {[%emt 0:00:36]} 12. Qd2 {[%emt 0:01:05]} Bf6 {[%emt 0:00:
15]} 13. Rad1 {[%emt 0:00:15]} Bg4 {[%emt 0:00:18]} 14. f3 {[%emt 0:00:16]} Be6
{[%emt 0:00:14]} 15. Bb5 {[%emt 0:02:15]} Rc8 {[%emt 0:00:47]} 16. Bxc6 {
[%emt 0:01:07]} Rxc6 {[%emt 0:00:08]} 17. Be5 {[%emt 0:00:05]} Be7 {[%emt 0:00:
30]} 18. Rc1 {[%emt 0:00:24]} Qb6 {[%emt 0:01:04]} 1/2-1/2

[Event "Turning Torso Chess Event 2021"]
[Site "Malmoe"]
[Date "2021.08.21"]
[Round "8.4"]
[White "Brynell, Stellan"]
[Black "Pantzar, Milton"]
[Result "0-1"]
[ECO "D35"]
[WhiteElo "2422"]
[BlackElo "2424"]
[Annotator "ChessBase"]
[PlyCount "102"]
[EventDate "2021.08.20"]
[EventType "tourn"]
[EventCountry "SWE"]
[SourceTitle "playchess.com"]
[Source "ChessBase"]
[SourceQuality "1"]
[TimeControl "900+5"]

1. d4 {[%emt 0:00:03]} d5 {[%emt 0:00:10]} 2. c4 {[%emt 0:00:03]} e6 {[%emt 0:
00:02]} 3. Nf3 {[%emt 0:00:03]} Nf6 {[%emt 0:00:08]} 4. Nc3 {[%emt 0:00:07]} h6
{[%emt 0:00:14]} 5. g3 {[%emt 0:01:09]} Bd6 {[%emt 0:00:03]} 6. Bg2 {[%emt 0:
00:04]} O-O {[%emt 0:00:08]} 7. O-O {[%emt 0:00:06]} Nc6 {[%emt 0:00:06]} 8.
cxd5 {[%emt 0:00:39]} exd5 {[%emt 0:00:04]} 9. Nb5 {[%emt 0:00:05]} Re8 {
[%emt 0:00:52]} 10. Nxd6 {[%emt 0:00:14]} cxd6 {[%emt 0:00:03]} 11. Bf4 {
[%emt 0:00:22]} Bf5 {[%emt 0:00:34]} 12. Rc1 {[%emt 0:00:47]} Qd7 {[%emt 0:00:
16]} 13. Re1 {[%emt 0:00:35]} a5 {[%emt 0:02:34]} 14. a3 {[%emt 0:02:20]} a4 {
[%emt 0:00:32]} 15. b3 {[%emt 0:01:50]} axb3 {[%emt 0:01:14]} 16. Qxb3 {
[%emt 0:00:02]} Na5 {[%emt 0:00:03]} 17. Qb4 {[%emt 0:00:52]} Nc4 {[%emt 0:01:
15]} 18. Ra1 {[%emt 0:00:02]} Ra4 {[%emt 0:01:16]} 19. Qb3 {[%emt 0:00:02]}
Rea8 {[%emt 0:00:17]} 20. Bc1 {[%emt 0:00:17]} b5 {[%emt 0:01:11]} 21. Nd2 {
[%emt 0:00:04]} Ne4 {[%emt 0:00:20]} 22. Nxc4 {[%emt 0:00:30]} dxc4 {[%emt 0:
00:50]} 23. Qe3 {[%emt 0:00:07]} d5 {[%emt 0:00:05]} 24. f3 {[%emt 0:00:19]}
Nf6 {[%emt 0:00:30]} 25. Bd2 {[%emt 0:00:08]} Re8 {[%emt 0:01:09]} 26. Qf2 {
[%emt 0:00:48]} Ra6 {[%emt 0:00:40]} 27. Bb4 {[%emt 0:00:12]} Rae6 {[%emt 0:00:
06]} 28. Rac1 {[%emt 0:00:34]} Qa7 {[%emt 0:00:52]} 29. Rc3 {[%emt 0:01:43]}
Bd3 {[%emt 0:00:05]} 30. Bf1 {[%emt 0:00:10]} h5 {[%emt 0:00:29]} 31. Rcc1 {
[%emt 0:00:28]} Bf5 {[%emt 0:00:09]} 32. Rc3 {[%emt 0:00:03]} Nd7 {[%emt 0:00:
33]} 33. h3 {[%emt 0:01:13]} Bg6 {[%emt 0:00:44]} 34. h4 {[%emt 0:00:06]} Bf5 {
[%emt 0:00:02]} 35. Kh2 {[%emt 0:00:05]} Nf6 {[%emt 0:00:10]} 36. Bh3 {[%emt 0:
00:10]} Bxh3 {[%emt 0:00:01]} 37. Kxh3 {[%emt 0:00:01]} Nd7 {[%emt 0:00:08]}
38. Kg2 {[%emt 0:00:17]} Nb8 {[%emt 0:00:02]} 39. e3 {[%emt 0:00:26]} Nc6 {
[%emt 0:00:06]} 40. Bc5 {[%emt 0:00:01]} Qa5 {[%emt 0:00:11]} 41. Qb2 {[%emt 0:
00:17]} Rg6 {[%emt 0:00:05]} 42. Kf2 {[%emt 0:00:06]} Qc7 {[%emt 0:00:02]} 43.
Rg1 {[%emt 0:00:01]} Rb8 {[%emt 0:00:03]} 44. Rcc1 {[%emt 0:00:17]} Qd7 {
[%emt 0:00:03]} 45. Qc2 {[%emt 0:00:24]} Rf6 {[%emt 0:00:02]} 46. Rb1 {[%emt 0:
00:06]} Nd8 {[%emt 0:00:04]} 47. Bb4 {[%emt 0:00:07]} Ra8 {[%emt 0:00:03]} 48.
Rbe1 {[%emt 0:00:15]} Raa6 {[%emt 0:00:03]} 49. e4 {[%emt 0:00:15]} dxe4 {
[%emt 0:00:14]} 50. Rxe4 {[%emt 0:00:02]} Rae6 {[%emt 0:00:08]} 51. Rxe6 {
[%emt 0:00:15]} Nxe6 {[%emt 0:00:04]} 0-1

[Event "Turning Torso Chess Event 2021"]
[Site "Malmoe"]
[Date "2021.08.21"]
[Round "5.4"]
[White "Smith, Axel"]
[Black "Brynell, Stellan"]
[Result "1-0"]
[ECO "C01"]
[WhiteElo "2451"]
[BlackElo "2422"]
[Annotator "ChessBase"]
[PlyCount "89"]
[EventDate "2021.08.20"]
[EventType "tourn"]
[EventCountry "SWE"]
[SourceTitle "playchess.com"]
[Source "ChessBase"]
[SourceQuality "1"]
[TimeControl "900+5"]

1. e4 {[%emt 0:00:01]} e6 {[%emt 0:00:09]} 2. d4 {[%emt 0:00:01]} d5 {[%emt 0:
00:02]} 3. exd5 {[%emt 0:00:01]} exd5 {[%emt 0:00:01]} 4. Nf3 {[%emt 0:00:01]}
Bd6 {[%emt 0:00:10]} 5. c4 {[%emt 0:00:01]} Nf6 {[%emt 0:00:09]} 6. c5 {
[%emt 0:00:01]} Be7 {[%emt 0:00:01]} 7. Bd3 {[%emt 0:00:02]} O-O {[%emt 0:00:
18]} 8. O-O {[%emt 0:00:02]} b6 {[%emt 0:00:03]} 9. Be3 {[%emt 0:00:01]} Bg4 {
[%emt 0:03:25]} 10. Nbd2 {[%emt 0:00:05]} bxc5 {[%emt 0:00:10]} 11. dxc5 {
[%emt 0:00:04]} Nc6 {[%emt 0:01:34]} 12. Qa4 {[%emt 0:00:32]} Bd7 {[%emt 0:00:
03]} 13. Bb5 {[%emt 0:01:12]} Qe8 {[%emt 0:00:14]} 14. Rfe1 {[%emt 0:01:04]}
Nb8 {[%emt 0:03:19]} 15. Bxd7 {[%emt 0:00:36]} Qxd7 {[%emt 0:00:02]} 16. Qxd7 {
[%emt 0:00:37]} Nfxd7 {[%emt 0:00:28]} 17. Rac1 {[%emt 0:01:34]} Nc6 {[%emt 0:
00:23]} 18. Nd4 {[%emt 0:01:05]} Nde5 {[%emt 0:00:50]} 19. Nxc6 {[%emt 0:00:49]
} Nxc6 {[%emt 0:00:02]} 20. Bf4 {[%emt 0:00:13]} Bf6 {[%emt 0:00:16]} 21. b3 {
[%emt 0:00:38]} Nb4 {[%emt 0:00:32]} 22. Bxc7 {[%emt 0:01:40]} Nd3 {[%emt 0:00:
06]} 23. Nf3 {[%emt 0:00:34]} Nxe1 {[%emt 0:01:08]} 24. Nxe1 {[%emt 0:01:07]}
Rac8 {[%emt 0:00:05]} 25. Bd6 {[%emt 0:00:06]} Rfe8 {[%emt 0:00:10]} 26. Kf1 {
[%emt 0:00:23]} Be7 {[%emt 0:00:16]} 27. Bxe7 {[%emt 0:00:13]} Rxe7 {[%emt 0:
00:01]} 28. b4 {[%emt 0:00:08]} Re4 {[%emt 0:00:17]} 29. Nd3 {[%emt 0:00:40]}
Kf8 {[%emt 0:00:15]} 30. Rc3 {[%emt 0:00:53]} Ke7 {[%emt 0:00:38]} 31. Ra3 {
[%emt 0:00:04]} Rc7 {[%emt 0:00:02]} 32. b5 {[%emt 0:00:27]} Rb7 {[%emt 0:00:
39]} 33. Ra5 {[%emt 0:00:13]} Kd8 {[%emt 0:00:22]} 34. a4 {[%emt 0:01:13]} f6 {
[%emt 0:00:16]} 35. g3 {[%emt 0:00:11]} Rc4 {[%emt 0:00:22]} 36. c6 {[%emt 0:
00:26]} Re7 {[%emt 0:00:09]} 37. Nf4 {[%emt 0:00:26]} Rc5 {[%emt 0:00:25]} 38.
Ra6 {[%emt 0:00:13]} d4 {[%emt 0:00:07]} 39. Kg2 {[%emt 0:00:09]} g5 {[%emt 0:
00:09]} 40. Nd3 {[%emt 0:00:05]} Rc3 {[%emt 0:00:01]} 41. Nb4 {[%emt 0:00:05]}
Rc4 {[%emt 0:00:39]} 42. Nd5 {[%emt 0:00:04]} Re5 {[%emt 0:00:06]} 43. b6 {
[%emt 0:00:13]} Rxc6 {[%emt 0:00:10]} 44. b7 {[%emt 0:00:03]} Rc8 {[%emt 0:00:
03]} 45. Rd6+ {[%emt 0:00:11]} 1-0